fUST/lending_fUST_20250606
["ID","MTS","AMOUNT","RATE_DAILY","PERIOD"]
[364564467,1749143239203,-403.07380378,0.00018904,2]
[364564468,1749143239229,-440.0,0.00018904,2]
[364564469,1749143239252,-440.0,0.00018904,2]
[364564470,1749143239280,-440.0,0.00018904,2]
[364564471,1749143239306,-440.0,0.00018904,2]
[364564472,1749143239334,-440.0,0.00018904,2]
[364564473,1749143239358,-440.0,0.00018904,2]
[364564474,1749143239385,-1555.39,0.00018904,2]
[364564475,1749143239409,-440.0,0.00018904,2]
[364564476,1749143239432,-440.0,0.00018904,2]
[364564477,1749143239457,-440.0,0.00018904,2]
[364564478,1749143239480,-545.37249477,0.00018904,2]
[364564479,1749143239504,-440.0,0.00018904,2]
[364564480,1749143239530,-589.54,0.00018904,2]
[364564481,1749143239554,-430.0,0.00018904,2]
[364564482,1749143239579,-539.37,0.00018904,2]
[364564483,1749143239603,-440.0,0.00018904,2]
[364564484,1749143239626,-413.71294305,0.00018904,2]
[364564485,1749143239648,-400.0,0.00018904,2]
[364564486,1749143239671,-217.28749386,0.00018904,2]
[364564487,1749143239695,-344.70013566,0.00018904,2]
[364564488,1749143239717,-440.0,0.00018904,2]
[364564489,1749143239739,-521.34,0.00018904,2]
[364564490,1749143239763,-590.94,0.00018904,2]
[364564491,1749143239788,-380.0,0.00018904,2]
[364564492,1749143239809,-440.0,0.00018904,2]
[364564493,1749143239831,-440.0,0.00018904,2]
[364564494,1749143239852,-529.0,0.00018904,2]
[364564495,1749143239875,-430.0,0.00018904,2]
[364564496,1749143239896,-440.0,0.00018904,2]
[364564497,1749143239917,-440.0,0.00018904,2]
[364564498,1749143239939,-442.49,0.00018904,2]
[364564499,1749143239962,-440.0,0.00018904,2]
[364564500,1749143239985,-725.37,0.00018904,2]
[364564501,1749143240006,-440.0,0.00018904,2]
[364564502,1749143240030,-410.0,0.00018904,2]
[364564503,1749143240052,-440.0,0.00018904,2]
[364564504,1749143240074,-440.0,0.00018904,2]
[364564505,1749143240097,-440.0,0.00018904,2]
[364564506,1749143240119,-440.0,0.00018904,2]
[364564507,1749143240144,-462.23289541,0.00018904,2]
[364564508,1749143240166,-440.0,0.00018904,2]
[364564509,1749143240187,-440.0,0.00018904,2]
[364564510,1749143240209,-440.0,0.00018904,2]
[364564511,1749143240232,-440.0,0.00018904,2]
[364564512,1749143240254,-410.0,0.00018904,2]
[364564513,1749143240277,-440.0,0.00018904,2]
[364564514,1749143240299,-440.0,0.00018904,2]
[364564515,1749143240321,-825.29,0.00018904,2]
[364564516,1749143240341,-440.0,0.00018904,2]
[364564517,1749143240361,-255.60729039,0.00018904,2]
[364564518,1749143240382,-440.0,0.00018904,2]
[364564519,1749143240404,-682.33,0.00018904,2]
[364564520,1749143240426,-440.0,0.00018904,2]
[364564521,1749143240447,-440.0,0.00018904,2]
[364564522,1749143240468,-440.0,0.00018904,2]
[364564523,1749143240490,-440.0,0.00018904,2]
[364564524,1749143240597,-440.0,0.00018904,2]
[364564525,1749143240620,-440.0,0.00018904,2]
[364564526,1749143240642,-440.0,0.00018904,2]
[364564527,1749143240664,-169.82932934,0.00018904,2]
[364564528,1749143240684,-440.0,0.00018904,2]
[364564529,1749143240705,-443.53,0.00018904,2]
[364564530,1749143240726,-440.0,0.00018904,2]
[364564531,1749143240749,-999.88,0.00018904,2]
[364564532,1749143240769,-440.0,0.00018904,2]
[364564533,1749143240790,-440.0,0.00018904,2]
[364564534,1749143240811,-440.0,0.00018904,2]
[364564535,1749143240831,-440.0,0.00018904,2]
[364564536,1749143240852,-440.0,0.00018904,2]
[364564537,1749143240873,-440.0,0.00018904,2]
[364564538,1749143240894,-932.26,0.00018904,2]
[364564539,1749143240914,-343.04487295,0.00018904,2]
[364564540,1749143240935,-500.41,0.00018904,2]
[364564541,1749143240956,-440.0,0.00018904,2]
[364564542,1749143240977,-440.0,0.00018904,2]
[364564543,1749143240999,-1074.84,0.00018904,2]
[364564544,1749143241025,-440.0,0.00018904,2]
[364564545,1749143241045,-151.11391832,0.00018904,2]
[364564546,1749143241066,-152.92743633,0.00018904,2]
[364564547,1749143241086,-151.0,0.00018904,2]
[364564548,1749143241107,-208.48728359,0.00018904,2]
[364564549,1749143241127,-440.0,0.00018904,2]
[364564550,1749143241156,-440.0,0.00018904,2]
[364564551,1749143241179,-500.0,0.00018904,2]
[364564552,1749143241201,-440.0,0.00018904,2]
[364564553,1749143241228,-440.0,0.00018904,2]
[364564554,1749143241250,-440.0,0.00018904,2]
[364564555,1749143241275,-1282.69,0.00018904,2]
[364564556,1749143241300,-440.0,0.00018904,2]
[364564557,1749143241338,-440.0,0.00018904,2]
[364564558,1749143241359,-440.0,0.00018904,2]
[364564559,1749143241380,-440.0,0.00018904,2]
[364564560,1749143241401,-380.0,0.00018904,2]
[364564561,1749143241422,-440.0,0.00018904,2]
[364564562,1749143241445,-2035.66,0.00018904,2]
[364564563,1749143241466,-440.0,0.00018904,2]
[364564564,1749143241487,-411.10801608,0.00018904,2]
[364564565,1749143241510,-440.0,0.00018904,2]
[364564566,1749143241534,-535.096736,0.00018904,2]
[364564567,1749143241557,-440.0,0.00018904,2]
[364564568,1749143241581,-614.93,0.00018904,2]
[364564569,1749143241601,-500.0,0.00018931,2]
[364564570,1749143241621,-500.0,0.00018959,2]
[364564571,1749143241641,-275.03443289,0.00018986,2]
[364564572,1749143241663,-482.73714751,0.00019087,2]
[364564573,1749143241691,-1883.83208725,0.00019107,2]
[364564574,1749143241711,-510.03104256,0.00019137,2]
[364564575,1749143241731,-506.85366716,0.00019137,2]
[364564576,1749143241751,-500.0,0.00019137,2]
[364564577,1749143241770,-500.0,0.00019156,2]
[364564578,1749143241794,-1559.731622,0.00019156,2]
[364564579,1749143241814,-420.0,0.00019178,2]
[364564580,1749143241835,-306.97446327,0.00019178,2]
[364564581,1749143241854,-440.0,0.00019178,2]
[364564582,1749143241875,-440.0,0.00019178,2]
[364564583,1749143241895,-440.0,0.00019178,2]
[364564584,1749143241916,-440.0,0.00019178,2]
[364564585,1749143241937,-440.0,0.00019178,2]
[364564586,1749143241957,-440.0,0.00019178,2]
[364564587,1749143241978,-440.0,0.00019178,2]
[364564588,1749143241998,-440.0,0.00019178,2]
[364564589,1749143242019,-440.0,0.00019178,2]
[364564590,1749143242046,-440.0,0.00019178,2]
[364564591,1749143242069,-440.0,0.00019178,2]
[364564592,1749143242091,-440.0,0.00019178,2]
[364564593,1749143242113,-400.0,0.00019178,2]
[364564594,1749143242137,-440.0,0.00019178,2]
[364564595,1749143242159,-390.0,0.00019178,2]
[364564596,1749143242181,-284.90451865,0.00019178,2]
[364564597,1749143242202,-196.29364021,0.00019178,2]
[364564598,1749143242224,-440.0,0.00019178,2]
[364564599,1749143242247,-440.0,0.00019178,2]
[364564600,1749143242269,-440.0,0.00019178,2]
[364564601,1749143242292,-440.0,0.00019178,2]
[364564602,1749143242313,-440.0,0.00019178,2]
[364564603,1749143242334,-440.0,0.00019178,2]
[364564604,1749143242357,-440.0,0.00019178,2]
[364564605,1749143242378,-440.0,0.00019178,2]
[364564606,1749143242399,-440.0,0.00019178,2]
[364564607,1749143242422,-440.0,0.00019178,2]
[364564608,1749143242445,-400.0,0.00019178,2]
[364564609,1749143242554,-440.0,0.00019178,2]
[364564610,1749143242578,-440.0,0.00019178,2]
[364564611,1749143242601,-400.0,0.00019178,2]
[364564612,1749143242623,-440.0,0.00019178,2]
[364564613,1749143242647,-460.28,0.00019178,2]
[364564614,1749143242669,-380.0,0.00019178,2]
[364564615,1749143242692,-400.0,0.00019178,2]
[364564616,1749143242713,-440.0,0.00019178,2]
[364564617,1749143242737,-440.0,0.00019178,2]
[364564618,1749143242761,-440.0,0.00019178,2]
[364564619,1749143242784,-420.0,0.00019178,2]
[364564620,1749143242807,-440.0,0.00019178,2]
[364564621,1749143242828,-440.0,0.00019178,2]
[364564622,1749143242850,-440.0,0.00019178,2]
[364564623,1749143242873,-440.0,0.00019178,2]
[364564624,1749143242894,-370.0,0.00019178,2]
[364564625,1749143242919,-1555.39,0.00019178,2]
[364564626,1749143242941,-440.0,0.00019178,2]
[364564627,1749143242963,-400.0,0.00019178,2]
[364564628,1749143242985,-440.0,0.00019178,2]
[364564629,1749143243007,-440.0,0.00019178,2]
[364564630,1749143243032,-589.54,0.00019178,2]
[364564631,1749143243056,-539.37,0.00019178,2]
[364564632,1749143243078,-293.49500189,0.00019178,2]
[364564633,1749143243101,-440.0,0.00019178,2]
[364564634,1749143243125,-590.94,0.00019178,2]
[364564635,1749143243151,-440.0,0.00019178,2]
[364564636,1749143243174,-440.0,0.00019178,2]
[364564637,1749143243198,-440.0,0.00019178,2]
[364564638,1749143243223,-440.0,0.00019178,2]
[364564639,1749143243247,-442.49,0.00019178,2]
[364564640,1749143243268,-440.0,0.00019178,2]
[364564641,1749143243292,-725.37,0.00019178,2]
[364564642,1749143243314,-440.0,0.00019178,2]
[364564643,1749143243338,-440.0,0.00019178,2]
[364564644,1749143243364,-440.0,0.00019178,2]
[364564645,1749143243386,-440.0,0.00019178,2]
[364564646,1749143243409,-440.0,0.00019178,2]
[364564647,1749143243431,-440.0,0.00019178,2]
[364564648,1749143243455,-440.0,0.00019178,2]
[364564649,1749143243479,-440.0,0.00019178,2]
[364564650,1749143243503,-440.0,0.00019178,2]
[364564651,1749143243528,-440.0,0.00019178,2]
[364564652,1749143243549,-440.0,0.00019178,2]
[364564653,1749143243573,-825.29,0.00019178,2]
[364564654,1749143243595,-440.0,0.00019178,2]
[364564655,1749143243616,-440.0,0.00019178,2]
[364564656,1749143243639,-682.33,0.00019178,2]
[364564657,1749143243662,-440.0,0.00019178,2]
[364564658,1749143243684,-440.0,0.00019178,2]
[364564659,1749143243706,-440.0,0.00019178,2]
[364564660,1749143243730,-440.0,0.00019178,2]
[364564661,1749143243751,-479.13083624,0.00019178,2]
[364564662,1749143243775,-440.0,0.00019178,2]
[364564663,1749143243797,-390.0,0.00019178,2]
[364564664,1749143243819,-440.0,0.00019178,2]
[364564665,1749143243843,-443.53,0.00019178,2]
[364564666,1749143243867,-440.0,0.00019178,2]
[364564667,1749143243891,-999.88,0.00019178,2]
[364564668,1749143243913,-440.0,0.00019178,2]
[364564669,1749143243934,-440.0,0.00019178,2]
[364564670,1749143243956,-440.0,0.00019178,2]
[364564671,1749143243976,-440.0,0.00019178,2]
[364564672,1749143243998,-440.0,0.00019178,2]
[364564673,1749143244028,-440.0,0.00019178,2]
[364564674,1749143244052,-932.26,0.00019178,2]
[364564675,1749143244075,-500.41,0.00019178,2]
[364564676,1749143244097,-440.0,0.00019178,2]
[364564677,1749143244121,-440.0,0.00019178,2]
[364564678,1749143244148,-1074.84,0.00019178,2]
[364564679,1749143244171,-440.0,0.00019178,2]
[364564680,1749143244192,-440.0,0.00019178,2]
[364564681,1749143244214,-440.0,0.00019178,2]
[364564682,1749143244236,-440.0,0.00019178,2]
[364564683,1749143244258,-420.0,0.00019178,2]
[364564684,1749143244284,-440.0,0.00019178,2]
[364564685,1749143244308,-1282.69,0.00019178,2]
[364564686,1749143244331,-440.0,0.00019178,2]
[364564687,1749143244352,-390.0,0.00019178,2]
[364564688,1749143244375,-440.0,0.00019178,2]
[364564689,1749143244396,-440.0,0.00019178,2]
[364564690,1749143244417,-261.56508279,0.00019178,2]
[364564691,1749143244441,-2035.66,0.00019178,2]
[364564692,1749143244547,-357.44003861,0.00019178,2]
[364564693,1749143244569,-440.0,0.00019178,2]
[364564694,1749143244593,-614.93,0.00019178,2]
[364564695,1749143244614,-189.042416,0.00019178,2]
[364564696,1749143244640,-1883.83208725,0.00019314,2]
[364564697,1749143244662,-500.0,0.0001944,2]
[364564698,1749143244684,-500.0,0.0001944,2]
[364564699,1749143244705,-500.0,0.0001944,2]
[364564700,1749143244725,-500.0,0.0001944,2]
[364564701,1749143244746,-211.99764877,0.0001944,2]
[364564702,1749143244768,-500.0,0.0001944,2]
[364564703,1749143244793,-500.0,0.0001944,2]
[364564704,1749143244816,-500.0,0.0001944,2]
[364564705,1749143244836,-214.52707427,0.0001944,2]
[364564706,1749143244857,-500.0,0.0001944,2]
[364564707,1749143244880,-500.0,0.0001944,2]
[364564708,1749143244901,-500.0,0.0001944,2]
[364564709,1749143244922,-613.13426947,0.0001944,2]
[364564710,1749143244944,-500.0,0.0001944,2]
[364564711,1749143244964,-368.13852271,0.0001944,2]
[364564712,1749143244985,-500.0,0.0001944,2]
[364564713,1749143245008,-159.8000094,0.0001944,2]
[364564714,1749143245030,-500.0,0.0001944,2]
[364564715,1749143245053,-500.0,0.0001944,2]
[364564716,1749143245075,-500.0,0.0001944,2]
[364564717,1749143245098,-500.0,0.0001944,2]
[364564718,1749143245119,-500.0,0.0001944,2]
[364564719,1749143245144,-500.0,0.0001944,2]
[364564720,1749143245166,-500.0,0.0001944,2]
[364564721,1749143245187,-500.0,0.0001944,2]
[364564722,1749143245210,-500.0,0.0001944,2]
[364564723,1749143245231,-500.0,0.0001944,2]
[364564724,1749143245253,-500.0,0.0001944,2]
[364564725,1749143245273,-500.0,0.0001944,2]
[364564726,1749143245297,-500.0,0.0001944,2]
[364564727,1749143245318,-500.0,0.0001944,2]
[364564728,1749143245339,-500.0,0.0001944,2]
[364564729,1749143245359,-500.0,0.0001944,2]
[364564730,1749143245380,-500.0,0.0001944,2]
[364564731,1749143245404,-500.0,0.0001944,2]
[364564732,1749143245425,-500.0,0.0001944,2]
[364564733,1749143245446,-500.0,0.0001944,2]
[364564734,1749143245467,-500.0,0.0001944,2]
[364564735,1749143245486,-600.0,0.0001944,2]
[364564736,1749143245507,-500.0,0.0001944,2]
[364564737,1749143245530,-500.0,0.0001944,2]
[364564738,1749143245551,-500.0,0.0001944,2]
[364564739,1749143245572,-500.0,0.0001944,2]
[364564740,1749143245593,-500.0,0.0001944,2]
[364564741,1749143245614,-500.0,0.0001944,2]
[364564742,1749143245634,-500.0,0.0001944,2]
[364564743,1749143245655,-500.0,0.0001944,2]
[364564744,1749143245676,-300.0,0.0001944,2]
[364564745,1749143245696,-500.0,0.0001944,2]
[364564746,1749143245718,-500.0,0.0001944,2]
[364564747,1749143245739,-500.0,0.0001944,2]
[364564748,1749143245759,-500.0,0.0001944,2]
[364564749,1749143245780,-407.97883892,0.0001944,2]
[364564750,1749143245800,-500.0,0.0001944,2]
[364564751,1749143245820,-500.0,0.0001944,2]
[364564752,1749143245842,-500.0,0.0001944,2]
[364564753,1749143245863,-500.0,0.0001944,2]
[364564754,1749143245884,-500.0,0.0001944,2]
[364564755,1749143245904,-500.0,0.0001944,2]
[364564756,1749143245923,-232.39658006,0.0001944,2]
[364564757,1749143245945,-500.0,0.0001944,2]
[364564758,1749143245965,-500.0,0.0001944,2]
[364564759,1749143245985,-500.0,0.0001944,2]
[364564760,1749143246006,-500.0,0.0001944,2]
[364564761,1749143246027,-500.0,0.0001944,2]
[364564762,1749143246048,-500.0,0.0001944,2]
[364564763,1749143246071,-500.0,0.0001944,2]
[364564764,1749143246091,-500.0,0.0001944,2]
[364564765,1749143246112,-500.0,0.0001944,2]
[364564766,1749143246139,-325.5594969,0.0001944,2]
[364564767,1749143246161,-500.0,0.0001944,2]
[364564768,1749143246182,-500.0,0.0001944,2]
[364564769,1749143246203,-500.0,0.0001944,2]
[364564770,1749143246226,-500.0,0.0001944,2]
[364564771,1749143246329,-16000.0,0.00019441,2]
[364564772,1749143246352,-172.98400657,0.00019452,2]
[364564773,1749143246373,-196.26066889,0.00019452,2]
[364564774,1749143246394,-440.0,0.00019452,2]
[364564775,1749143246414,-571.35018929,0.00019452,2]
[364564776,1749143246437,-440.0,0.00019452,2]
[364564777,1749143246458,-440.0,0.00019452,2]
[364564778,1749143246480,-440.0,0.00019452,2]
[364564779,1749143246501,-440.0,0.00019452,2]
[364564780,1749143246522,-440.0,0.00019452,2]
[364564781,1749143246544,-536.00547333,0.00019452,2]
[364564782,1749143246565,-440.0,0.00019452,2]
[364564783,1749143246585,-440.0,0.00019452,2]
[364564784,1749143246606,-440.0,0.00019452,2]
[364564785,1749143246625,-440.0,0.00019452,2]
[364564786,1749143246646,-440.0,0.00019452,2]
[364564787,1749143246666,-440.0,0.00019452,2]
[364564788,1749143246686,-440.0,0.00019452,2]
[364564789,1749143246706,-440.0,0.00019452,2]
[364564790,1749143246729,-460.28,0.00019452,2]
[364564791,1749143246749,-320.0,0.00019452,2]
[364564792,1749143246769,-440.0,0.00019452,2]
[364564793,1749143246792,-440.0,0.00019452,2]
[364564794,1749143246813,-440.0,0.00019452,2]
[364564795,1749143246832,-390.0,0.00019452,2]
[364564796,1749143246853,-440.0,0.00019452,2]
[364564797,1749143246874,-440.0,0.00019452,2]
[364564798,1749143246898,-1555.39,0.00019452,2]
[364564799,1749143246922,-440.0,0.00019452,2]
[364564800,1749143246944,-440.0,0.00019452,2]
[364564801,1749143246967,-440.0,0.00019452,2]
[364564802,1749143246989,-589.54,0.00019452,2]
[364564803,1749143247010,-539.37,0.00019452,2]
[364564804,1749143247031,-440.0,0.00019452,2]
[364564805,1749143247053,-590.94,0.00019452,2]
[364564806,1749143247074,-370.0,0.00019452,2]
[364564807,1749143247096,-440.0,0.00019452,2]
[364564808,1749143247117,-440.0,0.00019452,2]
[364564809,1749143247142,-440.0,0.00019452,2]
[364564810,1749143247163,-442.49,0.00019452,2]
[364564811,1749143247186,-440.0,0.00019452,2]
[364564812,1749143247209,-725.37,0.00019452,2]
[364564813,1749143247229,-440.0,0.00019452,2]
[364564814,1749143247252,-440.0,0.00019452,2]
[364564815,1749143247272,-440.0,0.00019452,2]
[364564816,1749143247294,-440.0,0.00019452,2]
[364564817,1749143247317,-440.0,0.00019452,2]
[364564818,1749143247338,-440.0,0.00019452,2]
[364564819,1749143247357,-440.0,0.00019452,2]
[364564820,1749143247381,-440.0,0.00019452,2]
[364564821,1749143247403,-440.0,0.00019452,2]
[364564822,1749143247423,-440.0,0.00019452,2]
[364564823,1749143247443,-440.0,0.00019452,2]
[364564824,1749143247465,-825.29,0.00019452,2]
[364564825,1749143247486,-440.0,0.00019452,2]
[364564826,1749143247507,-440.0,0.00019452,2]
[364564827,1749143247530,-682.33,0.00019452,2]
[364564828,1749143247551,-440.0,0.00019452,2]
[364564829,1749143247572,-440.0,0.00019452,2]
[364564830,1749143247591,-440.0,0.00019452,2]
[364564831,1749143247612,-440.0,0.00019452,2]
[364564832,1749143247632,-440.0,0.00019452,2]
[364564833,1749143247652,-440.0,0.00019452,2]
[364564834,1749143247673,-443.53,0.00019452,2]
[364564835,1749143247696,-440.0,0.00019452,2]
[364564836,1749143247720,-999.88,0.00019452,2]
[364564837,1749143247741,-256.68228915,0.00019452,2]
[364564838,1749143247762,-440.0,0.00019452,2]
[364564839,1749143247784,-440.0,0.00019452,2]
[364564840,1749143247805,-569.38328801,0.00019452,2]
[364564841,1749143247826,-440.0,0.00019452,2]
[364564842,1749143247847,-440.0,0.00019452,2]
[364564843,1749143247869,-932.26,0.00019452,2]
[364564844,1749143247890,-500.41,0.00019452,2]
[364564845,1749143247911,-440.0,0.00019452,2]
[364564846,1749143247931,-440.0,0.00019452,2]
[364564847,1749143248032,-1074.84,0.00019452,2]
[364564848,1749143248053,-440.0,0.00019452,2]
[364564849,1749143248074,-440.0,0.00019452,2]
[364564850,1749143248095,-432.95941968,0.00019452,2]
[364564851,1749143248114,-440.0,0.00019452,2]
[364564852,1749143248139,-440.0,0.00019452,2]
[364564853,1749143248162,-1282.69,0.00019452,2]
[364564854,1749143248185,-440.0,0.00019452,2]
[364564855,1749143248206,-440.0,0.00019452,2]
[364564856,1749143248228,-400.0,0.00019452,2]
[364564857,1749143248253,-2035.66,0.00019452,2]
[364564858,1749143248276,-440.0,0.00019452,2]
[364564859,1749143248302,-614.93,0.00019452,2]
[364564860,1749143248329,-1883.83208725,0.00019521,2]
[364564861,1749143248351,-423.7637613,0.00019531,2]
[364564862,1749143248371,-229.48950782,0.00019531,2]
[364564863,1749143248392,-160.0,0.00019531,2]
[364564864,1749143248412,-160.0,0.00019531,2]
[364564865,1749143248433,-212.94059491,0.00019531,2]
[364564866,1749143248453,-12675.11581177,0.00019531,2]
[364564867,1749143248472,-842.5625,0.00019531,2]
[364564868,1749143248491,-160.0,0.00019531,2]
[364564869,1749143248510,-160.0,0.00019589,2]
[364564870,1749143248530,-160.0,0.00019589,2]
[364564871,1749143248549,-482.73714751,0.00019646,2]
[364564872,1749143248569,-323.26948215,0.00019685,2]
[364564873,1749143248588,-504.77353075,0.00019704,2]
[364564874,1749143248608,-430.0,0.00019726,2]
[364564875,1749143248628,-440.0,0.00019726,2]
[364564876,1749143248648,-288.03,0.00019726,2]
[364564877,1749143248668,-440.0,0.00019726,2]
[364564878,1749143248687,-440.0,0.00019726,2]
[364564879,1749143248706,-440.0,0.00019726,2]
[364564880,1749143248726,-440.0,0.00019726,2]
[364564881,1749143248746,-440.0,0.00019726,2]
[364564882,1749143248766,-440.0,0.00019726,2]
[364564883,1749143248788,-440.0,0.00019726,2]
[364564884,1749143248808,-283.66393533,0.00019726,2]
[364564885,1749143248828,-440.0,0.00019726,2]
[364564886,1749143248848,-400.0,0.00019726,2]
[364564887,1749143248868,-460.28,0.00019726,2]
[364564888,1749143248891,-440.0,0.00019726,2]
[364564889,1749143248911,-440.0,0.00019726,2]
[364564890,1749143248932,-440.0,0.00019726,2]
[364564891,1749143248954,-440.0,0.00019726,2]
[364564892,1749143248976,-440.0,0.00019726,2]
[364564893,1749143249001,-1555.39,0.00019726,2]
[364564894,1749143249022,-440.0,0.00019726,2]
[364564895,1749143249044,-440.0,0.00019726,2]
[364564896,1749143249065,-440.0,0.00019726,2]
[364564897,1749143249088,-589.54,0.00019726,2]
[364564898,1749143249109,-539.37,0.00019726,2]
[364564899,1749143249132,-440.0,0.00019726,2]
[364564900,1749143249155,-590.94,0.00019726,2]
[364564901,1749143249176,-440.0,0.00019726,2]
[364564902,1749143249199,-440.0,0.00019726,2]
[364564903,1749143249224,-440.0,0.00019726,2]
[364564904,1749143249246,-442.49,0.00019726,2]
[364564905,1749143249268,-440.0,0.00019726,2]
[364564906,1749143249290,-725.37,0.00019726,2]
[364564907,1749143249311,-440.0,0.00019726,2]
[364564908,1749143249334,-440.0,0.00019726,2]
[364564909,1749143249356,-440.0,0.00019726,2]
[364564910,1749143249381,-440.0,0.00019726,2]
[364564911,1749143249401,-523.07761456,0.00019726,2]
[364564912,1749143249423,-440.0,0.00019726,2]
[364564913,1749143249444,-440.0,0.00019726,2]
[364564914,1749143249465,-430.0,0.00019726,2]
[364564915,1749143249486,-440.0,0.00019726,2]
[364564916,1749143249506,-440.0,0.00019726,2]
[364564917,1749143249529,-825.29,0.00019726,2]
[364564918,1749143249550,-385.14661955,0.00019726,2]
[364564919,1749143249572,-342.11756725,0.00019726,2]
[364564920,1749143249673,-682.33,0.00019726,2]
[364564921,1749143249694,-440.0,0.00019726,2]
[364564922,1749143249715,-512.57,0.00019726,2]
[364564923,1749143249734,-167.8728,0.00019726,2]
[364564924,1749143249754,-440.0,0.00019726,2]
[364564925,1749143249776,-440.0,0.00019726,2]
[364564926,1749143249796,-440.0,0.00019726,2]
[364564927,1749143249819,-443.53,0.00019726,2]
[364564928,1749143249842,-440.0,0.00019726,2]
[364564929,1749143249865,-999.88,0.00019726,2]
[364564930,1749143249887,-440.0,0.00019726,2]
[364564931,1749143249910,-440.0,0.00019726,2]
[364564932,1749143249934,-440.0,0.00019726,2]
[364564933,1749143249956,-440.0,0.00019726,2]
[364564934,1749143249985,-932.26,0.00019726,2]
[364564935,1749143250006,-500.41,0.00019726,2]
[364564936,1749143250027,-440.0,0.00019726,2]
[364564937,1749143250050,-440.0,0.00019726,2]
[364564938,1749143250073,-1074.84,0.00019726,2]
[364564939,1749143250095,-440.0,0.00019726,2]
[364564940,1749143250116,-440.0,0.00019726,2]
[364564941,1749143250142,-580.92213898,0.00019726,2]
[364564942,1749143250165,-440.0,0.00019726,2]
[364564943,1749143250190,-1282.69,0.00019726,2]
[364564944,1749143250213,-440.0,0.00019726,2]
[364564945,1749143250238,-440.0,0.00019726,2]
[364564946,1749143250263,-2035.66,0.00019726,2]
[364564947,1749143250286,-440.0,0.00019726,2]
[364564948,1749143250310,-614.93,0.00019726,2]
[364564949,1749143250337,-1883.83208725,0.00019728,2]
[364564950,1749143250359,-350.55412938,0.00019756,2]
[364564951,1749143250380,-500.0,0.00019756,2]
[364564952,1749143250401,-481.645,0.00019883,2]
[364564953,1749143250422,-500.0,0.00019913,2]
[364564954,1749143250449,-1883.83208725,0.00019934,2]
[364564955,1749143250471,-16000.0,0.00019989,2]
[364564956,1749143250492,-494.43680875,0.0002,2]
[364564957,1749143250514,-440.0,0.0002,2]
[364564958,1749143250535,-440.0,0.0002,2]
[364564959,1749143250557,-440.0,0.0002,2]
[364564960,1749143250578,-440.0,0.0002,2]
[364564961,1749143250600,-440.0,0.0002,2]
[364564962,1749143250621,-440.0,0.0002,2]
[364564963,1749143250643,-440.0,0.0002,2]
[364564964,1749143250665,-440.0,0.0002,2]
[364564965,1749143250686,-460.28,0.0002,2]
[364564966,1749143250706,-440.0,0.0002,2]